bitfinex/quotes_BTCUSD_20250219
["timestamp","ask_amount","ask_price","bid_price","bid_amount"]
[1739989030809,0.15595,96185.0,96178.0,0.10650365]
[1739989031179,0.15595,96185.0,96178.0,0.26246365]
[1739989031468,0.0008506,96186.0,96178.0,0.26246365]
[1739989031714,0.1567976,96186.0,96178.0,0.10650365]
[1739989031957,0.0008506,96186.0,96178.0,0.10250365]
[1739989032207,0.0008506,96186.0,96179.0,0.155958]
[1739989032452,0.0008506,96186.0,96178.0,0.10750365]
[1739989032453,0.1567986,96186.0,96180.0,0.10250365]
[1739989032954,0.0008506,96186.0,96180.0,0.10250365]
[1739989033192,0.155949,96185.0,96180.0,0.10250365]
[1739989033485,0.155955,96181.0,96180.0,0.10250365]
[1739989033698,0.0008506,96186.0,96180.0,0.10250365]
[1739989033933,0.0008506,96186.0,96180.0,0.10650365]
[1739989034169,0.155953,96183.0,96180.0,0.10650365]
[1739989035065,0.155949,96185.0,96180.0,0.10250365]
[1739989035288,0.2087816,96186.0,96180.0,0.10250365]
[1739989035495,0.155952,96183.0,96180.0,0.10850365]
[1739989035827,0.155952,96183.0,96180.0,0.10250365]
[1739989036032,0.155952,96183.0,96180.0,0.10750365]
[1739989036458,0.155954,96183.0,96180.0,0.10750365]
[1739989036632,0.0008506,96186.0,96180.0,0.10750365]
[1739989036839,0.207935,96184.0,96180.0,0.10750365]
[1739989037055,0.155955,96181.0,96180.0,0.10750365]
[1739989037274,0.155955,96181.0,96180.0,0.005]
[1739989037684,0.203155,96181.0,96180.0,0.005]
[1739989038061,0.155986,96163.0,96152.0,0.237301]
[1739989038254,0.1136,96181.0,96153.0,0.10250365]
[1739989038471,0.269555,96181.0,96180.0,0.004]
[1739989038882,0.1136,96181.0,96153.0,0.10250365]
[1739989039183,0.269555,96181.0,96180.0,0.001]
[1739989039862,0.155989,96161.0,96154.0,0.155999]
[1739989040066,0.155989,96161.0,96155.0,0.10250365]
[1739989040477,0.01466767,96161.0,96155.0,0.10250365]
[1739989040694,0.114451,96181.0,96155.0,0.10250365]
[1739989040917,0.048051,96181.0,96156.0,0.3204]
[1739989041128,0.155972,96171.0,96161.0,0.207984]
[1739989041346,0.155972,96171.0,96156.0,0.3204]
[1739989041347,0.01595425,96181.0,96162.0,0.10250365]
[1739989041553,0.01595425,96181.0,96163.0,0.075]
[1739989041758,0.01595425,96181.0,96165.0,0.155981]
[1739989041971,0.01595425,96181.0,96166.0,0.10250365]
[1739989042382,0.155978,96167.0,96166.0,0.10250365]
[1739989043119,0.207965,96170.0,96166.0,0.10250365]
[1739989043321,0.207945,96179.0,96166.0,0.10350365]
[1739989043781,0.155978,96167.0,96166.0,0.10350365]
[1739989044705,0.155978,96167.0,96166.0,0.10250365]
[1739989044929,0.155978,96167.0,96166.0,0.10750365]
[1739989046703,0.0664,96180.0,96166.0,0.10750365]
[1739989046704,0.155977,96168.0,96166.0,0.10750365]
[1739989047068,0.155978,96167.0,96166.0,0.10750365]
[1739989047183,0.155977,96168.0,96166.0,0.10750365]
[1739989047388,0.155978,96167.0,96166.0,0.10750365]
[1739989047635,0.155978,96167.0,96166.0,0.10250365]
[1739989048042,0.155978,96167.0,96166.0,0.10650365]
[1739989048481,0.155994,96157.0,96156.0,0.3204]
[1739989048670,0.155994,96157.0,96156.0,0.10250365]
[1739989050740,0.155994,96157.0,96156.0,0.10950365]
[1739989051137,0.20799,96159.0,96147.0,0.3204]
[1739989051339,0.156007,96149.0,96148.0,0.10250365]
[1739989052935,0.156005,96151.0,96148.0,0.10250365]
[1739989053158,0.17336439,96181.0,96148.0,0.10250365]
[1739989053371,0.155984,96164.0,96149.0,0.0804]
[1739989053584,0.155983,96164.0,96155.0,0.155996]
[1739989053786,0.15,96179.0,96156.0,0.10250365]
[1739989054229,0.207951,96177.0,96158.0,0.0799]
[1739989054437,0.15,96179.0,96159.0,0.10250365]
[1739989054682,0.155973,96171.0,96159.0,0.10250365]
[1739989054925,0.207952,96176.0,96159.0,0.31049165]
[1739989055169,0.155973,96171.0,96159.0,0.10250365]
[1739989055411,0.155976,96169.0,96160.0,0.155988]
[1739989055656,0.155976,96169.0,96161.0,0.10250365]
[1739989055901,0.155977,96168.0,96161.0,0.10250365]
[1739989056117,0.155975,96169.0,96161.0,0.10250365]
[1739989056558,0.207945,96179.0,96161.0,0.10250365]
[1739989057017,0.155977,96168.0,96161.0,0.10250365]
[1739989057470,0.155977,96168.0,96161.0,0.25849165]
[1739989058184,0.155977,96168.0,96161.0,0.26449165]
[1739989058418,0.155977,96168.0,96161.0,0.10850365]
[1739989058744,0.155978,96167.0,96161.0,0.10850365]
[1739989059679,0.155975,96169.0,96162.0,0.155986]
[1739989059937,0.207962,96172.0,96163.0,0.10250365]
[1739989060164,0.207956,96174.0,96163.0,0.10250365]
[1739989060404,0.155973,96171.0,96163.0,0.25848765]
[1739989060643,0.155974,96170.0,96163.0,0.10250365]
[1739989060880,0.155972,96171.0,96163.0,0.10250365]
[1739989061137,0.207954,96176.0,96163.0,0.10250365]
[1739989061344,0.155969,96173.0,96163.0,0.10550365]
[1739989061543,0.155974,96170.0,96163.0,0.10550365]
[1739989061949,0.155976,96169.0,96163.0,0.10250365]
[1739989062115,0.155976,96169.0,96163.0,0.10750365]
[1739989062553,0.207956,96174.0,96163.0,0.26348765]
[1739989062752,0.155973,96170.0,96163.0,0.10750365]
[1739989062958,0.00013108,96180.0,96163.0,0.10750365]
[1739989063364,0.155981,96165.0,96163.0,0.10250365]
[1739989063781,0.207949,96177.0,96163.0,0.10750365]
[1739989064011,0.207965,96170.0,96163.0,0.10750365]
[1739989064242,0.155972,96171.0,96163.0,0.10250365]
[1739989064473,0.00013108,96180.0,96163.0,0.25848765]
[1739989064680,0.00013108,96180.0,96163.0,0.25948765]
[1739989064954,0.155967,96174.0,96164.0,0.155981]
[1739989065159,0.155967,96174.0,96165.0,0.10250365]
[1739989065402,0.155973,96171.0,96165.0,0.10250365]
[1739989065648,0.00013108,96180.0,96165.0,0.10250365]
[1739989065904,0.155971,96172.0,96165.0,0.10250365]
[1739989066148,0.00013108,96180.0,96165.0,0.10250365]
[1739989066398,0.155973,96171.0,96165.0,0.10250365]
[1739989066637,0.207945,96179.0,96165.0,0.10250365]
[1739989067063,0.155973,96170.0,96165.0,0.10250365]
[1739989067817,0.207945,96179.0,96165.0,0.10750365]
[1739989068057,0.155973,96171.0,96165.0,0.10750365]
[1739989068259,0.155973,96171.0,96165.0,0.10250365]
[1739989068460,0.207953,96176.0,96165.0,0.10250365]
[1739989068660,0.00013108,96180.0,96165.0,0.10750365]
[1739989068940,0.15597,96172.0,96165.0,0.10750365]
[1739989069165,0.155974,96170.0,96165.0,0.10750365]
[1739989069603,0.155977,96168.0,96165.0,0.10750365]
[1739989069843,0.155975,96169.0,96165.0,0.10250365]
[1739989070062,0.207965,96170.0,96165.0,0.10250365]
[1739989070288,0.155973,96171.0,96165.0,0.10750365]
[1739989070612,0.155973,96171.0,96165.0,0.10250365]
[1739989071049,0.155973,96171.0,96165.0,0.10850365]
[1739989071287,0.00013108,96180.0,96165.0,0.10850365]
[1739989071562,0.00013108,96180.0,96165.0,0.10250365]
[1739989071808,0.155969,96173.0,96165.0,0.10750365]
[1739989072039,0.155969,96173.0,96165.0,0.10763473]
[1739989072274,0.207943,96180.0,96165.0,0.10763473]
[1739989072502,0.155972,96171.0,96165.0,0.10763473]
[1739989073207,0.155972,96171.0,96165.0,0.10263473]
[1739989073452,0.155972,96171.0,96165.0,0.10363473]
[1739989073984,0.207943,96180.0,96165.0,0.10263473]
[1739989074414,0.155976,96169.0,96165.0,0.10763473]
[1739989074643,0.207943,96180.0,96165.0,0.10763473]
[1739989074893,0.155973,96171.0,96165.0,0.10763473]
[1739989075130,0.155975,96170.0,96165.0,0.10263473]
[1739989076574,0.155975,96170.0,96165.0,0.10363473]
[1739989077421,0.155975,96170.0,96165.0,0.10263473]
[1739989078115,0.155975,96170.0,96165.0,0.10763473]
[1739989079097,0.207961,96172.0,96165.0,0.10763473]
[1739989079268,0.155973,96170.0,96165.0,0.10806013]
[1739989079537,0.1568238,96170.0,96165.0,0.10806013]
[1739989080241,0.1568238,96170.0,96165.0,0.10306013]
[1739989080450,0.1568238,96170.0,96165.0,0.10706013]
[1739989080713,0.0008508,96170.0,96165.0,0.10706013]
[1739989080946,0.1568248,96170.0,96165.0,0.10306013]
[1739989081148,0.1568248,96170.0,96165.0,0.10806013]
[1739989081369,0.0008508,96170.0,96165.0,0.10806013]
[1739989082352,0.15598,96166.0,96165.0,0.00555648]
[1739989083030,0.15598,96166.0,96165.0,0.00055648]
[1739989083448,0.15598,96166.0,96165.0,0.00155648]
[1739989083842,0.15598,96166.0,96165.0,0.00055648]
[1739989084045,0.15598,96166.0,96165.0,0.00255648]
[1739989096838,0.02036905,96168.0,96165.0,0.00255648]
[1739989097661,0.15598,96166.0,96165.0,0.00255648]
[1739989097868,0.15598,96166.0,96165.0,0.00055648]
[1739989098168,0.15598,96166.0,96165.0,0.00255648]
[1739989098629,0.15598,96166.0,96165.0,0.00055648]
[1739989098975,0.15598,96166.0,96165.0,0.00255648]
[1739989103204,0.30598,96166.0,96165.0,0.00255648]
[1739989103355,2.169047,96166.0,96165.0,0.00255648]
[1739989104145,2.169047,96166.0,96165.0,0.00055648]
[1739989106278,2.19979998,96166.0,96165.0,0.00055648]
[1739989106688,0.34459907,96166.0,96165.0,0.00055648]
[1739989107109,2.83578507,96166.0,96165.0,0.00055648]
[1739989107311,2.68468307,96166.0,96165.0,0.00055648]
[1739989107516,2.75108307,96166.0,96165.0,0.00055648]
[1739989107714,0.41099907,96166.0,96165.0,0.00055648]
[1739989107917,3.26115407,96166.0,96165.0,0.00055648]
[1739989108122,3.24515207,96166.0,96165.0,0.00055648]
[1739989108346,0.414206,96166.0,96165.0,0.00055648]
[1739989108567,0.001,96166.0,96165.0,0.00055648]
[1739989108770,0.001,96166.0,96165.0,0.25904113]
[1739989108979,0.001,96166.0,96165.0,0.34174113]
[1739989110094,0.0008508,96168.0,96165.0,0.34174113]
[1739989110311,0.0008508,96168.0,96167.0,0.23923112]
[1739989110525,0.0008508,96168.0,96167.0,0.18575677]
[1739989111159,0.0008508,96168.0,96167.0,0.18475677]
[1739989111367,0.0008508,96168.0,96167.0,0.34073477]
[1739989113459,0.0008508,96168.0,96167.0,0.18475677]
[1739989113874,0.0008508,96168.0,96167.0,0.34073477]
[1739989114394,0.0008508,96168.0,96167.0,0.18475677]
[1739989114758,0.0008508,96168.0,96167.0,0.19075677]
[1739989114976,0.0008508,96168.0,96167.0,0.66713477]
[1739989115387,0.0008508,96168.0,96167.0,0.51115677]
[1739989115704,0.0008508,96168.0,96167.0,0.66713477]
[1739989116705,0.0008508,96168.0,96167.0,0.51115677]
[1739989117063,0.0008508,96168.0,96167.0,0.66713477]
[1739989117286,0.0008508,96168.0,96167.0,0.42890365]
[1739989118750,0.0008508,96168.0,96167.0,0.58488165]
[1739989119778,0.0008508,96168.0,96167.0,0.42890365]
[1739989121239,0.0008508,96168.0,96167.0,0.3264]
[1739989123167,0.1568278,96168.0,96167.0,0.3264]
[1739989123400,0.1567878,96168.0,96167.0,0.3264]
[1739989124147,0.0008108,96168.0,96167.0,0.3264]
[1739989124371,0.1567878,96168.0,96167.0,0.3264]
[1739989125118,0.0008108,96168.0,96167.0,0.3264]
[1739989125330,0.0008108,96168.0,96167.0,0.31248]
[1739989126706,0.0008108,96168.0,96165.0,0.08325648]
[1739989126905,0.0008108,96168.0,96166.0,0.10250365]
[1739989127947,0.0018108,96168.0,96166.0,0.10250365]
[1739989128605,0.155978,96167.0,96166.0,0.10250365]
[1739989128787,0.155978,96167.0,96166.0,0.10750365]
[1739989129689,0.155978,96167.0,96166.0,0.005]
[1739989130528,0.15598,96166.0,96165.0,0.00055648]
[1739989132389,0.15598,96166.0,96165.0,0.00255648]
[1739989134160,0.15598,96166.0,96165.0,0.00055648]
[1739989134544,0.15598,96166.0,96165.0,0.00255648]
[1739989142056,0.0008108,96168.0,96165.0,0.00255648]
[1739989142261,0.0008108,96168.0,96167.0,0.155978]
[1739989142480,0.0008108,96168.0,96167.0,0.25848165]
[1739989142686,0.0008108,96168.0,96167.0,0.33988165]
[1739989144584,0.0018108,96168.0,96167.0,0.65936165]
[1739989145608,0.0008108,96168.0,96167.0,0.65236165]
[1739989146927,0.0008108,96168.0,96167.0,0.65936165]
[1739989147405,0.0008108,96168.0,96167.0,0.65236165]
[1739989147616,0.0008108,96168.0,96167.0,0.65936165]
[1739989152451,0.0008108,96168.0,96167.0,0.7206025]
[1739989152660,0.0008508,96170.0,96169.0,0.155975]
[1739989152844,0.0008508,96170.0,96169.0,1.4061995]
[1739989153077,0.0008508,96170.0,96169.0,1.4261995]
[1739989153443,0.0008508,96170.0,96169.0,1.4461995]
[1739989154059,0.0008508,96170.0,96169.0,1.4531995]
[1739989154481,0.0008508,96170.0,96169.0,1.4461995]
[1739989154903,0.0008508,96170.0,96169.0,1.4531995]
[1739989155106,0.0008508,96170.0,96169.0,2.15869061]
[1739989156581,0.0008508,96170.0,96169.0,1.26869061]
[1739989156782,0.0008508,96170.0,96169.0,1.26166976]
[1739989156982,0.0008508,96170.0,96169.0,1.27621061]
[1739989157157,0.0008508,96170.0,96169.0,1.42621061]
[1739989157556,0.0008508,96170.0,96169.0,1.41921061]
[1739989158011,0.0008508,96170.0,96169.0,1.42621061]
[1739989160454,0.0008508,96170.0,96169.0,1.40414976]
[1739989160658,0.0008508,96170.0,96169.0,1.40466976]
[1739989160857,0.0008508,96170.0,96169.0,1.41166976]
[1739989161063,0.1508512,96225.0,96171.0,0.0789]
[1739989161269,0.1508512,96225.0,96181.0,0.0772]
[1739989161476,0.155927,96199.0,96190.0,0.15594]
[1739989161677,0.01762741,96211.0,96191.0,0.10250365]
[1739989161910,0.155927,96199.0,96191.0,0.10250365]
[1739989162073,0.207878,96211.0,96191.0,0.10250365]
[1739989162279,0.155925,96200.0,96191.0,0.10250365]
[1739989162512,0.15,96216.0,96191.0,0.10250365]
[1739989162711,0.155924,96201.0,96192.0,0.155936]
[1739989162925,0.05172002,96272.0,96193.0,0.10250365]
[1739989163122,0.155927,96199.0,96193.0,0.10250365]
[1739989163281,0.207897,96202.0,96193.0,0.10250365]
[1739989163480,0.155927,96199.0,96193.0,0.10250365]
[1739989163981,0.16723096,96216.0,96193.0,0.10250365]
[1739989164190,0.574517,96215.0,96193.0,0.10250365]
[1739989164403,0.207867,96215.0,96193.0,0.10250365]
[1739989164610,0.155928,96199.0,96193.0,0.10250365]
[1739989164815,0.207892,96204.0,96193.0,0.10250365]
[1739989164966,0.155928,96198.0,96193.0,0.10650365]
[1739989165415,0.155926,96200.0,96193.0,0.10650365]
[1739989165620,0.2086982,96225.0,96193.0,0.10650365]
[1739989165824,0.155915,96206.0,96198.0,0.155928]
[1739989166224,0.155914,96207.0,96199.0,0.10250365]
[1739989167025,4.368e-05,96207.0,96199.0,0.10250365]
[1739989167238,0.155916,96206.0,96199.0,0.10250365]
[1739989167402,4.368e-05,96207.0,96199.0,0.10250365]
[1739989167808,0.155916,96206.0,96199.0,0.10250365]
[1739989168134,4.368e-05,96207.0,96199.0,0.10250365]
[1739989168350,0.155915,96206.0,96199.0,0.10250365]
[1739989168558,4.368e-05,96207.0,96199.0,0.10250365]
[1739989168559,0.155918,96205.0,96199.0,0.10250365]
[1739989169074,0.20792968,96207.0,96199.0,0.10250365]
[1739989169277,0.155918,96205.0,96199.0,0.10250365]
[1739989169463,0.207887,96206.0,96199.0,0.10250365]
[1739989169608,4.368e-05,96207.0,96199.0,0.10250365]
[1739989169827,4.368e-05,96207.0,96199.0,0.10450365]
[1739989170010,4.368e-05,96207.0,96199.0,0.26042865]
[1739989170221,4.368e-05,96207.0,96199.0,0.25842865]
[1739989170421,0.15595768,96207.0,96199.0,0.10550365]
[1739989170850,4.368e-05,96207.0,96199.0,0.10550365]
[1739989171071,4.368e-05,96207.0,96206.0,0.155915]
[1739989171293,4.368e-05,96207.0,96206.0,0.25841865]
[1739989171513,0.0618003,96235.0,96206.0,0.10250365]
[1739989171750,0.155886,96224.0,96207.0,0.10250365]
[1739989171980,0.15,96227.0,96212.0,0.155904]
[1739989172198,4.367e-05,96228.0,96207.0,0.10250365]
[1739989172398,0.155888,96223.0,96207.0,0.10250365]
[1739989172658,0.207844,96226.0,96207.0,0.10250365]
[1739989172897,0.207851,96223.0,96207.0,0.31038765]
[1739989173113,0.155894,96219.0,96209.0,0.155909]
[1739989173315,0.207854,96221.0,96210.0,0.10250365]
[1739989173710,0.155892,96221.0,96210.0,0.10250365]
[1739989174142,0.155893,96220.0,96210.0,0.10250365]
[1739989174265,0.155891,96221.0,96211.0,0.155907]
[1739989174631,0.155891,96221.0,96212.0,0.10250365]
[1739989174875,0.155889,96222.0,96212.0,0.10250365]
[1739989175257,0.155894,96220.0,96212.0,0.10250365]
[1739989175711,0.155894,96219.0,96212.0,0.10250365]
[1739989175919,0.207844,96226.0,96212.0,0.10250365]
[1739989176123,0.02119176,96227.0,96212.0,0.10250365]
[1739989176311,0.155893,96220.0,96212.0,0.10250365]
[1739989176806,0.02119176,96227.0,96212.0,0.10450365]
[1739989177013,0.155895,96219.0,96212.0,0.10450365]
[1739989177145,0.155892,96221.0,96212.0,0.10450365]
[1739989177583,0.155893,96220.0,96212.0,0.10450365]
[1739989177790,0.155893,96220.0,96212.0,0.10250365]
[1739989178648,0.02119176,96227.0,96212.0,0.10250365]
[1739989179178,0.155895,96219.0,96212.0,0.10550365]
[1739989179560,0.155895,96219.0,96212.0,0.10250365]
[1739989179743,0.155893,96220.0,96212.0,0.10250365]
[1739989179958,0.207855,96221.0,96212.0,0.10250365]
[1739989180135,0.155895,96219.0,96212.0,0.10250365]
[1739989180631,0.155891,96221.0,96212.0,0.10250365]
[1739989180840,0.02119176,96227.0,96212.0,0.10550365]
[1739989181063,0.155891,96221.0,96212.0,0.10550365]
[1739989181360,0.02119176,96227.0,96212.0,0.10550365]
[1739989181658,0.155889,96222.0,96213.0,0.0752]
[1739989181933,0.02119176,96227.0,96214.0,0.10250365]
[1739989182139,0.17707276,96227.0,96214.0,0.25840465]
[1739989182353,0.17707276,96227.0,96216.0,0.155898]
[1739989182567,0.02119176,96227.0,96215.0,0.207867]
[1739989182774,4.367e-05,96228.0,96217.0,0.10250365]
[1739989183248,4.367e-05,96228.0,96226.0,0.0752]
[1739989184142,0.000852,96239.0,96226.0,0.0752]
[1739989184383,0.00124878,96239.0,96228.0,0.207839]
[1739989184621,0.17913007,96239.0,96229.0,0.10250365]
[1739989184849,0.02326707,96239.0,96229.0,0.10250365]
[1739989185085,0.155867,96236.0,96229.0,0.10250365]
[1739989186543,0.155867,96236.0,96229.0,0.10550365]
[1739989187774,0.1562923,96236.0,96229.0,0.10550365]
[1739989187997,0.0004253,96236.0,96229.0,0.10550365]
[1739989188406,0.0004253,96236.0,96231.0,0.155874]
[1739989188623,0.0004253,96236.0,96232.0,0.10250365]
[1739989189998,0.0004253,96236.0,96235.0,0.155868]
[1739989190207,0.0004253,96236.0,96235.0,0.25837165]
[1739989190624,0.0004253,96236.0,96235.0,0.33747165]
[1739989191227,0.0004253,96236.0,96235.0,0.38437165]
[1739989191461,0.0004253,96236.0,96235.0,0.3989125]
[1739989192520,0.0004253,96236.0,96235.0,0.41040142]
[1739989193172,0.0004253,96236.0,96235.0,0.40440142]
[1739989193429,0.0004253,96236.0,96235.0,0.41140142]
[1739989194672,0.0004253,96236.0,96235.0,0.4059125]
[1739989195050,0.0004253,96236.0,96235.0,1.2547925]
[1739989195459,0.0004253,96236.0,96235.0,1.2617925]
[1739989195841,0.0004253,96236.0,96235.0,1.26028142]
[1739989196046,0.0004253,96236.0,96235.0,1.26728142]
[1739989196728,0.0004253,96236.0,96235.0,1.2617925]
[1739989197361,0.0004253,96236.0,96235.0,1.2672722]
[1739989198615,0.15,96274.0,96237.0,0.0816]
[1739989198817,0.00013096,96262.0,96245.0,0.0816]
[1739989199010,0.00013096,96262.0,96246.0,0.10250365]
[1739989199296,0.00013096,96262.0,96257.0,0.155832]
[1739989199500,0.00013096,96262.0,96258.0,0.10250365]
[1739989202193,0.00013096,96262.0,96258.0,0.10650365]
[1739989202718,0.00013096,96262.0,96258.0,0.10250365]
[1739989202946,0.00013096,96262.0,96258.0,0.10750365]
[1739989205702,0.155826,96261.0,96258.0,0.10750365]
[1739989205908,0.15595496,96262.0,96258.0,0.10750365]
[1739989206112,0.155827,96261.0,96258.0,0.10750365]
[1739989206314,0.00013096,96262.0,96258.0,0.10750365]
[1739989206517,0.155829,96259.0,96258.0,0.10750365]
[1739989207056,0.155829,96259.0,96258.0,0.10250365]
[1739989208209,0.155829,96259.0,96258.0,0.10750365]
[1739989209237,0.155829,96259.0,96258.0,0.10250365]
[1739989209443,0.155829,96259.0,96258.0,0.10550365]
[1739989209842,0.155829,96259.0,96258.0,0.10250365]
[1739989210042,0.00013096,96262.0,96247.0,0.31248]
[1739989210244,0.155845,96249.0,96248.0,0.10250365]
[1739989210475,0.00013096,96262.0,96247.0,0.31248]
[1739989210476,0.155847,96248.0,96247.0,0.31248]
[1739989212052,0.155847,96248.0,96247.0,0.31548]
[1739989215918,0.155847,96248.0,96247.0,0.003]
[1739989217186,0.15587,96234.0,96233.0,0.0758]
[1739989217428,0.305876,96230.0,96206.0,0.0812]
[1739989217636,0.640548,96230.0,96201.0,0.0462]
[1739989217852,0.33622593,96230.0,96201.0,0.0462]
[1739989218084,0.33622593,96230.0,96218.0,0.0812]
[1739989218085,0.17164493,96230.0,96218.0,0.0812]
[1739989218341,0.32752093,96230.0,96218.0,0.0812]
[1739989219011,0.32752093,96230.0,96229.0,0.00128738]
[1739989219239,1.07650793,96230.0,96229.0,0.00128738]
[1739989219474,0.98919993,96230.0,96229.0,0.00128738]
[1739989219723,0.63702193,96230.0,96229.0,0.00128738]
[1739989220154,0.55418493,96230.0,96229.0,0.00128738]
[1739989220575,0.32752093,96230.0,96229.0,0.00128738]
[1739989221199,0.44979193,96230.0,96229.0,0.00128738]
[1739989225398,0.45750092,96230.0,96229.0,0.00128738]
[1739989226945,0.33522992,96230.0,96229.0,0.00128738]
[1739989227151,0.32752093,96230.0,96229.0,0.00128738]
[1739989227759,0.73303993,96230.0,96229.0,0.00128738]
[1739989229105,0.76033493,96230.0,96229.0,0.00128738]
[1739989229304,0.56453593,96230.0,96229.0,0.00128738]
[1739989229560,0.32752093,96230.0,96229.0,0.00128738]
[1739989230139,0.52284193,96230.0,96229.0,0.00128738]
[1739989230548,0.32752093,96230.0,96229.0,0.00128738]
[1739989231967,0.67867693,96230.0,96229.0,0.00128738]
[1739989232155,0.76085393,96230.0,96229.0,0.00128738]
[1739989233511,0.68717193,96230.0,96229.0,0.00128738]
[1739989234161,0.56571393,96230.0,96229.0,0.00128738]
[1739989234325,0.44551193,96230.0,96229.0,0.00128738]
[1739989234703,0.32752093,96230.0,96229.0,0.00128738]
[1739989236646,0.73727693,96230.0,96229.0,0.00128738]
[1739989236851,0.77734097,96230.0,96229.0,0.00128738]
[1739989237401,0.32744797,96230.0,96229.0,0.00128738]
[1739989238985,0.47482497,96230.0,96229.0,0.00128738]
[1739989239191,0.32744797,96230.0,96229.0,0.00128738]
[1739989239369,0.46821697,96230.0,96229.0,0.00128738]
[1739989239563,0.32744797,96230.0,96229.0,0.00128738]
[1739989242524,0.02164493,96230.0,96229.0,0.08228738]
[1739989242666,0.0618,96261.0,96229.0,0.18479103]
[1739989242862,0.00773117,96254.0,96231.0,0.0458]
[1739989243087,0.207796,96248.0,96231.0,0.14830365]
[1739989243290,0.155862,96239.0,96231.0,0.14830365]
[1739989243442,0.15,96247.0,96231.0,0.14830365]
[1739989243848,0.155868,96236.0,96231.0,0.14830365]
[1739989244247,0.15,96251.0,96231.0,0.14830365]
[1739989244532,0.155873,96232.0,96231.0,0.0458]
[1739989247234,0.155873,96232.0,96231.0,0.0468]
[1739989248388,0.15,96248.0,96231.0,0.0468]
[1739989248641,0.219203,96247.0,96231.0,0.0468]
[1739989249052,0.30585,96246.0,96231.0,0.14930365]
[1739989249264,0.15,96246.0,96231.0,0.14930365]
[1739989249451,0.15,96241.0,96231.0,0.14930365]
[1739989249593,0.15,96241.0,96233.0,0.207828]
[1739989249798,0.15,96241.0,96233.0,0.10250365]
[1739989250216,0.15,96239.0,96233.0,0.10250365]
[1739989250600,0.155863,96238.0,96233.0,0.10250365]
[1739989250805,0.155866,96237.0,96233.0,0.10250365]
[1739989251007,0.15,96239.0,96233.0,0.10250365]
[1739989251210,0.155866,96237.0,96233.0,0.10250365]
[1739989251637,0.001,96239.0,96233.0,0.10250365]
[1739989252053,0.155867,96236.0,96233.0,0.10250365]
[1739989252281,0.155866,96236.0,96233.0,0.10250365]
[1739989252496,0.20782,96237.0,96233.0,0.10250365]
[1739989252901,0.305862,96239.0,96234.0,0.10250365]
[1739989253518,0.15,96239.0,96231.0,0.0458]
[1739989253650,0.15,96239.0,96232.0,0.10250365]
[1739989253866,0.15,96246.0,96231.0,0.0458]
[1739989254113,0.15,96248.0,96231.0,0.0458]
[1739989254114,0.155873,96232.0,96231.0,0.0458]
[1739989257589,0.207824,96235.0,96229.0,0.08228738]
[1739989257758,0.155876,96230.0,96229.0,0.08228738]
[1739989259602,0.155876,96230.0,96229.0,0.00328738]
[1739989260517,0.40221685,96230.0,96229.0,0.002]
[1739989260717,0.40221685,96230.0,96182.0,0.079]
[1739989260718,0.155925,96200.0,96182.0,0.079]
[1739989261113,0.305925,96200.0,96180.0,0.0491]
[1739989261273,0.996152,96200.0,96180.0,0.0491]
[1739989261504,0.805853,96200.0,96180.0,0.0491]
[1739989261737,0.805853,96200.0,96183.0,0.00549521]
[1739989262159,0.82680992,96200.0,96183.0,0.00549521]
[1739989262362,0.82980992,96200.0,96183.0,0.00549521]
[1739989262766,0.8568826,96200.0,96183.0,0.00549521]
[1739989263801,0.8568826,96200.0,96180.0,0.0491]
[1739989266880,0.8568826,96200.0,96175.0,0.079]
[1739989267120,0.89351482,96200.0,96199.0,6e-07]
[1739989267319,0.39358682,96200.0,96199.0,6e-07]
[1739989267758,0.39058682,96200.0,96199.0,6e-07]
[1739989268168,0.39658682,96200.0,96199.0,0.0010006]
[1739989268741,3.85427382,96200.0,96199.0,1e-08]
[1739989268945,0.39658682,96200.0,96199.0,1e-08]
[1739989271979,0.39658682,96200.0,96199.0,0.00085081]
[1739989272395,2.51923047,96200.0,96199.0,0.00085081]
[1739989272769,1.86348382,96200.0,96199.0,0.00085081]
[1739989272985,1.19219582,96200.0,96199.0,0.00085081]
[1739989273321,0.03350919,96200.0,96199.0,0.08165081]
[1739989273504,0.18943419,96200.0,96199.0,0.08165081]
[1739989273725,0.03350919,96200.0,96199.0,0.08165081]
[1739989274277,0.33343419,96200.0,96199.0,0.0816508]
[1739989274496,0.17750919,96200.0,96199.0,0.0816508]
[1739989274643,0.18350919,96200.0,96199.0,0.0826508]
[1739989274855,0.15643651,96200.0,96199.0,0.0826508]
[1739989275019,0.3339424,96200.0,96199.0,0.0816508]
[1739989275422,0.15043651,96200.0,96199.0,0.0816508]
[1739989275670,0.15043651,96200.0,96199.0,0.18415445]
[1739989276423,0.00043651,96200.0,96199.0,0.18415445]
[1739989280610,0.00043651,96200.0,96199.0,0.18615445]
[1739989281049,0.00043651,96200.0,96199.0,0.18415445]
[1739989281417,0.00043651,96200.0,96199.0,0.18815445]
[1739989282388,0.00043651,96200.0,96199.0,0.34408045]
[1739989282745,0.00043651,96200.0,96199.0,0.18815445]
[1739989283719,0.00043651,96200.0,96199.0,0.34408045]
[1739989285085,0.16467138,96214.0,96199.0,0.39605545]
[1739989285318,0.18328019,96211.0,96201.0,0.155922]
[1739989285549,0.155907,96211.0,96202.0,0.10250365]
[1739989285768,0.16467138,96214.0,96202.0,0.10250365]
[1739989285988,0.155905,96212.0,96202.0,0.09550365]
[1739989286250,0.155904,96213.0,96202.0,0.25142465]
[1739989286474,0.02773041,96212.0,96202.0,0.25142465]
[1739989286812,0.207854,96221.0,96202.0,0.09550365]
[1739989287051,0.02091627,96225.0,96202.0,0.25142465]
[1739989287246,0.155904,96213.0,96202.0,0.25142465]
[1739989287741,0.02751932,96213.0,96202.0,0.09550365]
[1739989287862,0.001,96214.0,96213.0,0.203804]
[1739989288079,0.15,96221.0,96213.0,0.22780365]
[1739989288321,0.15,96221.0,96214.0,0.10250365]
[1739989288627,0.15,96221.0,96215.0,0.207867]
[1739989288850,0.15,96226.0,96217.0,0.155897]
[1739989288976,0.15,96226.0,96216.0,0.155898]
[1739989289179,0.001,96221.0,96215.0,0.10250365]
[1739989289607,0.05105424,96296.0,96215.0,0.10250365]
[1739989289825,0.155887,96224.0,96215.0,0.25840365]
[1739989290030,0.207844,96226.0,96215.0,0.10250365]
[1739989290232,0.155887,96224.0,96215.0,0.25840365]
[1739989290436,0.155887,96224.0,96215.0,0.10250365]
[1739989290639,0.02732126,96226.0,96215.0,0.10250365]
[1739989290836,0.155886,96224.0,96215.0,0.10250365]